Workbook

Sheet Лист1
A1: Директор МБОУ БГ с.Учалы
A2: Г.М. Исламова
A3: Меню МБОУ БГ с.Учалы Категория: дети начальных классов (1-4 кл), дети из многодетных малообеспеченных семей (1-4 кл)
A4: родительские взносы (5-11) на 15.12.2021
A5: Прием пищи | B5: Раздел | C5: № рец | D5: Блюдо | E5: Выход | F5: Цена | G5: расход | H5: Цена | I5: ЭЦ | J5: Белки | K5: Жиры | L5: Углеводы
A6: Завтрак | C6: 134 | D6: Каша "Дружба" молочная с маслом | E6: 200/10 | H6: 19 | I6: 274 | J6: 6.2 | K6: 8.6 | L6: 32.4
C7: 287 | D7: Кофейный напиток на молоке | E7: 200 | F7: 825 | G7: 1 | H7: 7 | I7: 101 | J7: 3.4 | K7: 15.1 | L7: 3.3
D8: Печенье сахарное | E8: 30 | H8: 11 | I8: 94.2 | J8: 2.25 | K8: 1.57 | L8: 22.3
C9: 1.1 | D9: хлеб | E9: 50 | F9: 73.7 | G9: 50 | H9: 3 | I9: 130 | J9: 4 | K9: 0.05 | L9: 27.5
D10: итого | H10: =SUM(H6:H9) -> 40 | I10: =SUM(I6:I9) -> 599.2 | J10: =SUM(J6:J9) -> 15.85 | K10: =SUM(K6:K9) -> 25.32 | L10: =SUM(L6:L9) -> 85.5
A12: Меню МБОУ БГ с.Учалы Категория: дети из многодетных малообеспеченных семей (5-11) на 15.12.2021
A13: Прием пищи | B13: Раздел | C13: № рец | D13: Блюдо | E13: Выход | F13: Цена | G13: расход | H13: Цена | I13: ЭЦ | J13: Белки | K13: Жиры | L13: Углеводы
A14: Завтрак | C14: 134 | D14: Каша "Дружба" молочная с маслом | E14: 200/10 | H14: 19 | I14: 274 | J14: 6.2 | K14: 8.6 | L14: 32.4
C15: 287 | D15: Кофейный напиток на молоке | E15: 200 | F15: 825 | G15: 1 | H15: 7 | I15: 101 | J15: 3.4 | K15: 15.1 | L15: 3.3
D16: Печенье сахарное | E16: 50 | H16: 20 | I16: 94.2 | J16: 2.25 | K16: 1.57 | L16: 22.3
C17: 1.1 | D17: хлеб | E17: 50 | F17: 73.7 | G17: 50 | H17: 3 | I17: 130 | J17: 4 | K17: 0.05 | L17: 27.5
D18: итого | H18: =SUM(H14:H17) -> 49 | I18: =SUM(I14:I17) -> 599.2 | J18: =SUM(J14:J17) -> 15.85 | K18: =SUM(K14:K17) -> 25.32 | L18: =SUM(L14:L17) -> 85.5
A21: Меню МБОУ БГ с.Учалы для учащихся с ОВЗ (1-4) на 15.12.2021
B22: Раздел | C22: № рец | D22: Блюдо | E22: Выход | F22: Цена | G22: расход | H22: Цена | I22: ЭЦ | J22: Белки | K22: Жиры | L22: Углеводы
C23: 134 | D23: Каша "Дружба" молочная с маслом | E23: 200/10 | H23: 18 | I23: 274 | J23: 6.2 | K23: 8.6 | L23: 32.4
C24: 287 | D24: Кофейный напиток на молоке | E24: 200 | F24: 825 | G24: 1 | H24: 7 | I24: 101 | J24: 3.4 | K24: 15.1 | L24: 3.3
D25: Печенье сахарное | E25: 30 | H25: 11 | I25: 94.2 | J25: 2.25 | K25: 1.57 | L25: 22.3
C26: 1.1 | D26: хлеб | E26: 50 | F26: 73.7 | G26: 50 | H26: 3 | I26: 130 | J26: 4 | K26: 0.05 | L26: 27.5
D27: итого | H27: =SUM(H23:H26) -> 39 | I27: =SUM(I23:I26) -> 599.2 | J27: =SUM(J23:J26) -> 15.85 | K27: =SUM(K23:K26) -> 25.32 | L27: =SUM(L23:L26) -> 85.5
C29: ДО7ДО19 | D29: Суп картофельный с бобовыми | E29: 200 | H29: 15 | I29: 152 | J29: 6 | K29: 3.47 | L29: 23.6
C30: 97 | D30: Жаркое по -домашнему | E30: 150 | H30: 30.2 | I30: 263.88 | J30: 15.15 | K30: 15.93 | L30: 14.95
C31: 65 | D31: Чай с сахаром | E31: 200 | H31: 3 | I31: 56.8 | J31: 0.06 | K31: 0 | L31: 14.98
C32: 1.1 | D32: хлеб | E32: 50 | F32: 73.7 | G32: 50 | H32: 3 | I32: 130 | J32: 4 | K32: 0.05 | L32: 27.5
D34: итого | H34: =SUM(H29:H32)+H33 -> 51.2 | I34: =SUM(I29:I32)+I33 -> 602.68 | J34: =SUM(J29:J32)+J33 -> 25.21 | K34: =SUM(K29:K32)+K33 -> 19.45 | L34: =SUM(L29:L32)+L33 -> 81.03
A37: Меню МБОУ БГ с.Учалы для учащихся с ОВЗ (5-11) на 15.12.2021
B38: Раздел | C38: № рец | D38: Блюдо | E38: Выход | F38: Цена | G38: расход | H38: Цена | I38: ЭЦ | J38: Белки | K38: Жиры | L38: Углеводы
C39: 134 | D39: Каша "Дружба" молочная с маслом | E39: 200/10 | H39: 19 | I39: 274 | J39: 6.2 | K39: 8.6 | L39: 32.4
C40: 287 | D40: Кофейный напиток на молоке | E40: 200 | F40: 825 | G40: 1 | H40: 7 | I40: 101 | J40: 3.4 | K40: 15.1 | L40: 3.3
D41: Печенье сахарное | E41: 50 | H41: 20 | I41: 94.2 | J41: 2.25 | K41: 1.57 | L41: 22.3
C42: 1.1 | D42: хлеб | E42: 50 | F42: 73.7 | G42: 50 | H42: 3 | I42: 130 | J42: 4 | K42: 0.05 | L42: 27.5
D43: итого | H43: =SUM(H39:H42) -> 49 | I43: =SUM(I39:I42) -> 599.2 | J43: =SUM(J39:J42) -> 15.85 | K43: =SUM(K39:K42) -> 25.32 | L43: =SUM(L39:L42) -> 85.5
C45: ДО7ДО19 | D45: Суп картофельный с бобовыми | E45: 200 | H45: 15 | I45: 152 | J45: 6 | K45: 3.47 | L45: 23.6
C46: 97 | D46: Жаркое по -домашнему | E46: 250 | H46: 55 | I46: 351.84 | J46: 20.2 | K46: 21.24 | L46: 19.94
C47: 65 | D47: Чай с сахаром | E47: 200 | H47: 3 | I47: 56.8 | J47: 0.06 | K47: 0 | L47: 14.98
C48: 1.1 | D48: хлеб | E48: 50 | F48: 73.7 | G48: 50 | H48: 3 | I48: 130 | J48: 4 | K48: 0.05 | L48: 27.5
D50: итого | H50: =SUM(H45:H48)+H49 -> 76 | I50: =SUM(I45:I48)+I49 -> 690.64 | J50: =SUM(J45:J48)+J49 -> 30.26 | K50: =SUM(K45:K48)+K49 -> 24.76 | L50: =SUM(L45:L48)+L49 -> 86.02
A52: Дополнительное меню для образовательных организаций города и района
A53: Учалинский район Республики Башкортостан | F53: 15 декабря 2021г
A54: Прием пищи | B54: Раздел | C54: № рец | D54: Блюдо | E54: Выход | F54: Цена | G54: расход | H54: Цена | I54: ЭЦ | J54: Белки | K54: Жиры | L54: Углеводы
A55: Завтрак | C55: прсокде | D55: Сок в ассортименте фас/2 шт | E55: 400 | H55: 44 | I55: 184 | J55: 2 | K55: 0 | L55: 40
C56: 368 | D56: фрукт (апельсин ) шт | E56: 150 | H56: 36 | I56: 142 | J56: 1 | K56: 0 | L56: 70
D57: итого | H57: =SUM(H55:H56) -> 80 | I57: =SUM(I55:I56) -> 326 | J57: =SUM(J55:J56) -> 3 | K57: =SUM(K55:K56) -> 0 | L57: =SUM(L55:L56) -> 110
